Workbook

Sheet SEMESTER
B1: MOJ URNIK POUKA
B2: JESENSKI SEMESTER
C3: ZAČETNI ČAS | D3: ČASOVNI INTERVAL | F3: LETO
C4: 09:00:00 | D4: 60 | E4: (v minutah)
B5: URA | C5: PON | D5: TOR | E5: SRE | F5: ČET | G5: PET | H5: SOB | I5: NED
B6: =Začetni_čas+TIME(0,(ROW(A1)-1)*ČasovniInterval,0) -> 09:00:00 | C6: Zajtrk | D6: Zajtrk | E6: Zajtrk | F6: Zajtrk | G6: Zajtrk
B7: 10:00:00 | C7: Ekonomija: Predavanje v stavbi B, soba 256
B8: 11:00:00 | F8: Fizika: Laboratorij Stavba J, soba 309
B9: 12:00:00
B10: 13:00:00
B11: 14:00:00
B12: 15:00:00
B13: 16:00:00
B14: 17:00:00
B15: 18:00:00
B16: 19:00:00
B17: 20:00:00
B18: 21:00:00
B19: 22:00:00
B20: 23:00:00
B21: 1
B22: 1.041666667
B23: 1.083333333
B24: 1.125
B25: 1.166666667
B26: 1.208333333
B27: 1.25
B28: 1.291666667
B29: 1.333333333

Sheet TOČKE
B1: ŠTUDIJ
B2: NAČRTOVALNIK TOČKOVANJA
B3: Strokovni naslov | C3: =Leto -> LETO
B4: CELOTEN NAPREDEK | D4: SKUPEN NAPREDEK
B5: =AVERAGE(Predmeti[OCENA]) -> 3.5 | C5: =IFERROR(TEXT(AVERAGEIF(Predmeti[DOKONČANO],"Da",Predmeti[OCENA]),"0,00"),"0,00")&" Trenutna povprečna ocena" -> 3,50 Trenutna povprečna ocena | D5: =COUNTIF(Predmeti[DOKONČANO],"Da")/COUNTA(Predmeti[NASLOV PREDMETA]) -> 0.6666666667 | E5: =TEXT(COUNTIF(Predmeti[DOKONČANO],"Da")/COUNTA(Predmeti[NASLOV PREDMETA]),"0%")&" Dokončano" -> 67% Dokončano
B6: Opomba: Povzetek točkovanja je samodejno izpolnjen z vrednostmi, ki jih vnesete v tabelo Predmeti na fakulteti spodaj
B7: POGOJ | C7: SKUPNO ŠTEVILO TOČK | D7: PRISLUŽENO | E7: POTREBNO
B8: Glavna smer študija | C8: =IF(SUMIF(Predmeti[ZAHTEVA],TOČKE!$B8,Predmeti[TOČKE])=0,"0",SUMIF(Predmeti[ZAHTEVA],TOČKE!$B8,Predmeti[TOČKE])) -> 4 | D8: =SUMIFS(Predmeti[TOČKE],Predmeti[ZAHTEVA],TOČKE!$B8,Predmeti[DOKONČANO],"Da") -> 4 | E8: =SUMIF(Predmeti[ZAHTEVA],TOČKE!$B8,Predmeti[TOČKE])-SUMIFS(Predmeti[TOČKE],Predmeti[ZAHTEVA],TOČKE!$B8,Predmeti[DOKONČANO],"Da") -> 0
B9: Sekundarna smer študija | C9: =IF(SUMIF(Predmeti[ZAHTEVA],TOČKE!$B9,Predmeti[TOČKE])=0,"0",SUMIF(Predmeti[ZAHTEVA],TOČKE!$B9,Predmeti[TOČKE])) -> 3 | D9: =SUMIFS(Predmeti[TOČKE],Predmeti[ZAHTEVA],TOČKE!$B9,Predmeti[DOKONČANO],"Da") -> 0 | E9: =SUMIF(Predmeti[ZAHTEVA],TOČKE!$B9,Predmeti[TOČKE])-SUMIFS(Predmeti[TOČKE],Predmeti[ZAHTEVA],TOČKE!$B9,Predmeti[DOKONČANO],"Da") -> 3
B10: Izbirni predmet | C10: =IF(SUMIF(Predmeti[ZAHTEVA],TOČKE!$B10,Predmeti[TOČKE])=0,"0",SUMIF(Predmeti[ZAHTEVA],TOČKE!$B10,Predmeti[TOČKE])) -> 2 | D10: =SUMIFS(Predmeti[TOČKE],Predmeti[ZAHTEVA],TOČKE!$B10,Predmeti[DOKONČANO],"Da") -> 2 | E10: =SUMIF(Predmeti[ZAHTEVA],TOČKE!$B10,Predmeti[TOČKE])-SUMIFS(Predmeti[TOČKE],Predmeti[ZAHTEVA],TOČKE!$B10,Predmeti[DOKONČANO],"Da") -> 0
B11: Splošni študij | C11: =IF(SUMIF(Predmeti[ZAHTEVA],TOČKE!$B11,Predmeti[TOČKE])=0,"0",SUMIF(Predmeti[ZAHTEVA],TOČKE!$B11,Predmeti[TOČKE])) -> 0 | D11: =SUMIFS(Predmeti[TOČKE],Predmeti[ZAHTEVA],TOČKE!$B11,Predmeti[DOKONČANO],"Da") -> 0 | E11: =SUMIF(Predmeti[ZAHTEVA],TOČKE!$B11,Predmeti[TOČKE])-SUMIFS(Predmeti[TOČKE],Predmeti[ZAHTEVA],TOČKE!$B11,Predmeti[DOKONČANO],"Da") -> 0
B12: Skupaj | C12: =SUBTOTAL(109,TOČKE!$C$8:$C$11) -> 9 | D12: =SUBTOTAL(109,TOČKE!$D$8:$D$11) -> 6 | E12: =SUBTOTAL(109,TOČKE!$E$8:$E$11) -> 3
B13: Predmeti
B14: NASLOV PREDMETA | C14: ŠT. PREDMETA | D14: ZAHTEVA | E14: TOČKE | F14: DOKONČANO | G14: OCENA | H14: SEMESTER
B15: Predmet 1 | C15: Številka | D15: Glavna smer študija | E15: 4 | F15: Da | G15: 4.0 | H15: Semester 1
B16: Predmet 2 | C16: Številka | D16: Sekundarna smer študija | E16: 3 | F16: Ne | H16: Semester 1
B17: Predmet 3 | C17: Številka | D17: Izbirni predmet | E17: 2 | F17: Da | G17: 3.0 | H17: Semester 1

Sheet PRORAČUN
B1: =Študij -> ŠTUDIJ
B2: SLEDILNIK PRORAČUNA
B3: Moj proračun | C3: =Leto -> LETO
B4: ODSTOTEK PORABLJENEGA DOHODKA
B5: =NETO_MESEČNI_IZDATKI/NETO_MESEČNI_DOHODKI -> 1 €
B6: =B5 -> 0.7454545455
B7: NETO MESEČNI DOHODEK | C7: NETO MESEČNI IZDATKI | D7: BILANCA
B8: =C10 -> 2,750 € | C8: ='NETO MESEČNI IZDATKI'!C4+'IZDATKI V SEMESTRU'!D4 -> 2,050 € | D8: =NETO_MESEČNI_DOHODKI-NETO_MESEČNI_IZDATKI -> 700 €
B9: Meseci v semestru | C9: 4
B10: MESEČNI DOHODEK | C10: =SUM(MesečNi_Dohodek[ZNESEK]) -> 2,750 €
B11: ELEMENT | C11: ZNESEK
B12: Fiksen dohodek | C12: 1,500 €
B13: Finančna pomoč | C13: 500 €
B14: Posojila | C14: 500 €
B15: Drugi dohodki | C15: 250 €

Sheet NETO MESEČNI IZDATKI
B1: =Študij -> ŠTUDIJ
B2: SLEDILNIK PRORAČUNA
B3: Mesečni izdatki | C3: =Leto -> LETO
B4: MESEČNI IZDATKI | C4: =SUM(Mesečni_Izdatki[ZNESEK]) -> 1,675 €
B5: ELEMENT | C5: ZNESEK
B6: Najemnina | C6: 300 €
B7: Potrebščine | C7: 50 €
B8: Mobilni telefon | C8: 75 €
B9: Špecerija | C9: 250 €
B10: Stroški za avto | C10: 50 €
B11: Študentska posojila | C11: 500 €
B12: Kreditne kartice | C12: 275 €
B13: Zavarovanje | C13: 125 €
B14: Zabava | C14: 50 €
B15: Razno | C15: 0 €

Sheet IZDATKI V SEMESTRU
B1: =Študij -> ŠTUDIJ
B2: SLEDILNIK PRORAČUNA
B3: Izdatki v semestru | C3: =Leto -> LETO
B4: IZDATKI V SEMESTRU (skupaj/na mesec) | C4: =SUM(Izdatki_v_semestru[ZNESEK]) -> 1,500 € | D4: =SUM(Izdatki_v_semestru[NA MESEC]) -> 375 €
B5: ELEMENT | C5: ZNESEK | D5: NA MESEC
B6: Inštrukcije | C6: 750 € | D6: =Izdatki_v_semestru[[#This Row],[ZNESEK]]/Meseci_v_semestru -> 188 €
B7: Laboratorijske vaje | C7: 250 € | D7: =Izdatki_v_semestru[[#This Row],[ZNESEK]]/Meseci_v_semestru -> 63 €
B8: Gradivo | C8: 500 € | D8: =Izdatki_v_semestru[[#This Row],[ZNESEK]]/Meseci_v_semestru -> 125 €
B9: Pologi | C9: 0 € | D9: =Izdatki_v_semestru[[#This Row],[ZNESEK]]/Meseci_v_semestru -> 0 €
B10: Prevoz | C10: 0 € | D10: =Izdatki_v_semestru[[#This Row],[ZNESEK]]/Meseci_v_semestru -> 0 €
B11: Druge pristojbine | C11: 0 € | D11: =Izdatki_v_semestru[[#This Row],[ZNESEK]]/Meseci_v_semestru -> 0 €

Sheet KNJIGE
B1: =Študij -> ŠTUDIJ
B2: SLEDILNIK KNJIG
B3: Seznam knjig
B4: NASLOV | C4: AVTOR | D4: PREDMET | E4: KJE KUPITI? | F4: ISBN | G4: OPOMBE
B5: Naslov knjige | C5: Avtor | D5: Predmet | E5: Lokacija | F5: Številka
B6: Naslov knjige | C6: Avtor | D6: Predmet | E6: Lokacija | F6: Številka
B7: Naslov knjige | C7: Avtor | D7: Predmet | E7: Lokacija | F7: Številka
